bitfinex/quotes_BTCUSD_20251207
["timestamp","ask_amount","ask_price","bid_price","bid_amount"]
[1765123754211,0.02284,89449.0,89448.0,0.0613681]
[1765123754993,0.02184,89449.0,89448.0,0.28496169]
[1765123755154,0.01117917,89452.0,89449.0,0.01117955]
[1765123755486,0.003,89449.0,89448.0,0.0001181]
[1765123755645,0.14214801,89449.0,89448.0,0.0001181]
[1765123755859,0.06569606,89449.0,89448.0,0.0001181]
[1765123756082,0.08790004,89449.0,89448.0,0.0001181]
[1765123756511,0.17429398,89449.0,89448.0,0.0001181]
[1765123756661,0.55981697,89449.0,89448.0,0.0001181]
[1765123756891,0.56927362,89449.0,89448.0,0.0001181]
[1765123757075,0.60043491,89449.0,89448.0,0.0001181]
[1765123757895,0.59743491,89449.0,89448.0,0.0001181]
[1765123758524,0.56627362,89449.0,89448.0,0.0011181]
[1765123760696,0.58411362,89449.0,89448.0,0.0011181]
[1765123767574,2.34099162,89449.0,89448.0,0.0011181]
[1765123768133,0.01118418,89412.0,89409.0,0.04259]
[1765123768333,0.01118418,89412.0,89405.0,0.01118505]
[1765123768334,0.01118468,89408.0,89405.0,0.01118505]
[1765123768462,0.01118468,89408.0,89406.0,0.01118493]
[1765123768463,0.01784,89408.0,89406.0,0.01118493]
[1765123768663,0.01784,89408.0,89407.0,0.06243051]
[1765123770128,0.01784,89408.0,89407.0,0.00118051]
[1765123770297,0.16422,89408.0,89407.0,0.00118051]
[1765123770634,0.18642398,89408.0,89407.0,0.00118051]
[1765123771039,0.4091176,89408.0,89407.0,0.00118051]
[1765123771558,0.4101176,89408.0,89407.0,0.00118051]
[1765123772295,0.4111176,89408.0,89407.0,0.00118051]
[1765123772496,0.3179376,89408.0,89407.0,0.00118051]
[1765123772717,0.49634135,89408.0,89407.0,0.00118051]
[1765123773336,0.47425346,89408.0,89407.0,0.00118051]
[1765123773725,0.47325346,89408.0,89407.0,0.00118051]
[1765123773930,0.47325346,89408.0,89407.0,0.00218051]
[1765123774134,0.47325346,89408.0,89407.0,0.00718051]
[1765123774284,0.79625346,89408.0,89407.0,0.00718051]
[1765123774487,0.90595852,89408.0,89407.0,0.00718051]
[1765123774986,0.91640159,89408.0,89407.0,0.00718051]
[1765123775195,0.90595852,89408.0,89407.0,0.00618051]
[1765123775642,0.90595852,89408.0,89407.0,0.00318051]
[1765123776069,1.67348008,89408.0,89407.0,0.00418051]
[1765123776296,0.63143811,89401.0,89400.0,0.0004]
[1765123776533,1.33326719,89381.0,89380.0,0.0004]
[1765123776748,1.33844638,89381.0,89380.0,0.0004]
[1765123776966,1.46250638,89381.0,89380.0,0.0004]
[1765123777179,1.59372453,89381.0,89380.0,0.0004]
[1765123778154,1.59372453,89381.0,89360.0,0.0004]
[1765123778350,2.19271525,89361.0,89360.0,0.0004]
[1765123778558,2.25364225,89361.0,89360.0,0.0004]
[1765123778821,2.25364225,89361.0,89350.0,0.0004]
[1765123778822,0.8398173,89351.0,89350.0,0.0004]
[1765123778956,0.6315633,89351.0,89350.0,0.0004]
[1765123779164,0.7556233,89351.0,89350.0,0.0004]
[1765123779367,0.77507617,89351.0,89350.0,0.0004]
[1765123779762,0.75723617,89351.0,89350.0,0.0004]
[1765123780004,0.77507617,89351.0,89350.0,0.0004]
[1765123780208,0.85500089,89351.0,89350.0,0.0004]
[1765123780477,0.87720487,89351.0,89350.0,0.0004]
[1765123780890,1.65028387,89351.0,89350.0,0.0004]
[1765123781302,1.16066587,89351.0,89350.0,0.0004]
[1765123782238,1.16566587,89351.0,89350.0,0.0004]
[1765123782637,1.16766587,89351.0,89350.0,0.00212684]
[1765123783041,1.14982587,89351.0,89350.0,0.00212684]
[1765123783273,1.16766587,89351.0,89350.0,0.00212684]
[1765123785883,1.14982587,89351.0,89350.0,0.00212684]
[1765123786029,1.16766587,89351.0,89350.0,0.00212684]
[1765123786451,1.06393987,89351.0,89350.0,0.00212684]
[1765123787257,1.10883987,89351.0,89350.0,0.00212684]
[1765123788440,1.10883987,89351.0,89350.0,0.00224495]
[1765123789677,1.09099987,89351.0,89350.0,0.00224495]
[1765123789879,1.09099987,89351.0,89318.0,9e-05]
[1765123789880,0.01119557,89321.0,89318.0,9e-05]
[1765123790079,0.01784,89320.0,89318.0,0.01128595]
[1765123790293,0.01784,89320.0,89319.0,0.08925]
[1765123790500,0.01784,89320.0,89319.0,0.1518]
[1765123791002,0.01784,89320.0,89319.0,0.06255]
[1765123791428,0.22391652,89319.0,89318.0,9e-05]
[1765123791631,0.22391652,89319.0,89318.0,0.00109]
[1765123791632,0.27545652,89319.0,89318.0,0.00109]
[1765123791829,0.22391652,89319.0,89318.0,0.00109]
[1765123792004,0.22391652,89319.0,89318.0,9e-05]
[1765123792622,0.22391652,89319.0,89318.0,0.06264]
[1765123792816,0.01119532,89323.0,89319.0,0.01119582]
[1765123793018,0.01784,89319.0,89318.0,0.09434]
[1765123793233,0.01784,89319.0,89318.0,0.09534]
[1765123793466,0.01784,89319.0,89318.0,0.15789]
[1765123793592,0.01784,89319.0,89318.0,0.06864]
[1765123793792,0.01119545,89322.0,89318.0,0.06864]
[1765123793793,0.23510424,89323.0,89319.0,0.01119582]
[1765123794059,0.01784,89322.0,89318.0,0.10653595]
[1765123794284,0.00681606,89327.0,89324.0,0.01119519]
[1765123794434,0.01119394,89334.0,89324.0,0.01119519]
[1765123794435,0.01784,89328.0,89327.0,0.01119482]
[1765123794938,0.01784,89328.0,89327.0,0.16299482]
[1765123795155,0.01784,89328.0,89327.0,0.38689129]
[1765123795314,0.01119419,89332.0,89328.0,0.01119469]
[1765123795514,0.01784,89331.0,89329.0,0.01119457]
[1765123795924,0.24172644,89331.0,89330.0,0.05883]
[1765123796131,0.001,89328.0,89327.0,0.008]
[1765123796374,0.01119545,89322.0,89318.0,0.01128595]
[1765123796607,0.01119532,89323.0,89320.0,0.0111957]
[1765123796791,0.01119507,89325.0,89321.0,0.01119557]
[1765123797007,0.01119482,89327.0,89324.0,0.07002519]
[1765123797159,0.01119482,89327.0,89324.0,0.01119519]
[1765123797361,0.01119482,89327.0,89326.0,0.05883]
[1765123797611,0.01119419,89332.0,89328.0,0.01119469]
[1765123797807,0.22387892,89334.0,89330.0,0.001]
[1765123797808,0.001,89331.0,89330.0,0.001]
[1765123798089,0.68607478,89331.0,89330.0,0.001]
[1765123798468,0.63164349,89319.0,89295.0,0.01119883]
[1765123798642,0.69458349,89319.0,89290.0,0.0004]
[1765123798851,0.26901652,89319.0,89298.0,0.01119845]
[1765123799056,0.24175652,89319.0,89313.0,0.04325]
[1765123799269,0.3129805,89319.0,89313.0,0.04325]
[1765123799468,0.2639605,89319.0,89313.0,0.04325]
[1765123800255,0.2639605,89319.0,89308.0,0.04325]
[1765123800256,0.3129805,89319.0,89308.0,0.04325]
[1765123800434,0.39976988,89319.0,89297.0,0.00327935]
[1765123800642,0.39976988,89319.0,89296.0,0.04259]
[1765123800643,0.86999287,89319.0,89296.0,0.04259]
[1765123801083,0.87099287,89319.0,89296.0,0.04259]
[1765123801218,0.7038405,89319.0,89296.0,0.04259]
[1765123801420,0.24275652,89319.0,89318.0,0.00106011]
[1765123801652,0.46120349,89319.0,89318.0,0.00106011]
[1765123802282,0.46120349,89319.0,89277.0,0.01120109]
[1765123802283,0.22398673,89291.0,89277.0,0.01120109]
[1765123802503,0.24182673,89291.0,89280.0,0.0914]
[1765123803329,0.24182673,89291.0,89290.0,0.0064]
[1765123803330,0.24282673,89291.0,89290.0,0.0064]
[1765123803941,0.24282673,89291.0,89290.0,0.0074]
[1765123804530,0.001,89291.0,89290.0,0.15763]
[1765123804756,0.001,89291.0,89290.0,0.16116778]
[1765123804933,0.001,89291.0,89290.0,0.17819901]
[1765123805485,0.001,89291.0,89290.0,0.17943954]
[1765123805698,0.02903783,89303.0,89299.0,0.01119833]
[1765123805922,0.02903783,89303.0,89302.0,0.05883]
[1765123806286,0.01119695,89310.0,89304.0,0.23515046]
[1765123806464,0.01044989,89311.0,89310.0,0.04259]
[1765123806690,0.02164496,89319.0,89315.0,0.01119632]
[1765123806905,0.01784,89320.0,89317.0,0.2351176]
[1765123807111,0.01784,89320.0,89319.0,0.05883]
[1765123807314,0.01119482,89327.0,89320.0,0.22391401]
[1765123807515,0.01119707,89309.0,89306.0,0.04259]
[1765123807726,0.22395664,89303.0,89291.0,0.13465]
[1765123807927,0.22395664,89303.0,89291.0,0.04325]
[1765123808125,0.3087694,89303.0,89291.0,0.04325]
[1765123808579,0.2582294,89303.0,89291.0,0.04325]
[1765123808977,0.22398423,89292.0,89291.0,0.04325]
[1765123809652,0.01784,89295.0,89292.0,0.01119921]
[1765123809844,0.23517855,89294.0,89291.0,0.04325]
[1765123810081,0.27522253,89294.0,89291.0,0.0433682]
[1765123810247,0.25301855,89294.0,89291.0,0.0433682]
[1765123810456,0.25301855,89294.0,89291.0,0.0453682]
[1765123810652,0.29853855,89294.0,89291.0,0.0001182]
[1765123810895,0.08390398,89292.0,89291.0,0.0001182]
[1765123811110,0.09597556,89292.0,89291.0,0.0021182]
[1765123811318,0.16964556,89292.0,89291.0,0.0021182]
[1765123812040,0.09597556,89292.0,89291.0,0.0041182]
[1765123812183,0.09597556,89292.0,89291.0,0.0001182]
[1765123812582,0.03427556,89292.0,89291.0,0.0021182]
[1765123813858,0.01207158,89292.0,89291.0,0.0021182]
[1765123814002,0.22398423,89292.0,89291.0,0.0021182]
[1765123814204,0.22398423,89292.0,89291.0,0.05937712]
[1765123814450,0.22398423,89292.0,89291.0,0.06137712]
[1765123814657,0.01784,89293.0,89291.0,0.14761712]
[1765123814861,0.0111987,89296.0,89292.0,0.06763921]
[1765123815016,0.01119883,89295.0,89292.0,0.01119921]
[1765123815219,0.23517817,89294.0,89291.0,0.0041182]
[1765123815418,0.01119896,89294.0,89291.0,0.0021182]
[1765123815837,0.23517853,89294.0,89291.0,0.0021182]
[1765123816035,0.23517853,89294.0,89291.0,0.0031182]
[1765123816263,0.23517853,89294.0,89291.0,0.0011182]
[1765123817251,0.02220398,89292.0,89291.0,0.0001182]
[1765123817722,0.02220398,89292.0,89291.0,0.0011182]
[1765123818087,0.22398423,89292.0,89291.0,0.0001182]
[1765123818658,0.22498423,89292.0,89291.0,0.0001182]
[1765123819224,0.001,89292.0,89291.0,0.0565582]
[1765123819427,0.001,89292.0,89291.0,0.1427982]
[1765123819655,0.05114,89292.0,89291.0,0.0001182]
[1765123819852,0.07834398,89292.0,89291.0,0.0001182]
[1765123820058,0.02820398,89292.0,89291.0,0.0001182]
[1765123820254,0.22398185,89293.0,89291.0,0.0001182]
[1765123820435,0.001,89292.0,89291.0,0.00093712]
[1765123820633,0.001,89292.0,89291.0,0.00193712]
[1765123820849,0.22398185,89293.0,89291.0,0.00193712]
[1765123821101,0.005,89292.0,89291.0,0.0001182]
[1765123821424,0.005,89292.0,89291.0,0.0011182]
[1765123821731,0.005,89292.0,89291.0,0.0575582]
[1765123821952,0.005,89292.0,89291.0,0.1427982]
[1765123822291,0.0111987,89296.0,89293.0,0.01119908]
[1765123822490,0.0111987,89296.0,89292.0,0.22398423]
[1765123822491,0.0111987,89296.0,89295.0,0.03955]
[1765123822697,0.02520398,89292.0,89291.0,0.0001182]
[1765123823099,0.55724642,89292.0,89291.0,0.0001182]
[1765123823298,0.22406202,89261.0,89260.0,0.0004]
[1765123823503,0.289086,89261.0,89260.0,0.0004]
[1765123823759,0.299544,89261.0,89260.0,0.0004]
[1765123823965,0.27456397,89261.0,89260.0,0.0004]
[1765123824084,0.264106,89261.0,89260.0,0.0004]
[1765123824847,0.264106,89261.0,89260.0,0.0024]
[1765123825068,0.41825245,89261.0,89260.0,0.0024]
[1765123825227,0.40041245,89261.0,89260.0,0.0024]
[1765123825602,0.41825245,89261.0,89260.0,0.0024]
[1765123825803,0.41825245,89261.0,89260.0,0.0044]
[1765123826002,0.25833245,89261.0,89260.0,0.0024]
[1765123826200,0.25396847,89261.0,89260.0,0.0024]
[1765123826470,0.42025245,89261.0,89260.0,0.0024]
[1765123826596,0.42025245,89261.0,89260.0,0.00415978]
[1765123827025,0.42025245,89261.0,89260.0,0.00215978]
[1765123827353,0.41825245,89261.0,89260.0,0.00215978]
[1765123827702,0.80377544,89261.0,89260.0,0.00215978]
[1765123828617,0.9134805,89261.0,89260.0,0.00215978]
[1765123829489,0.80377544,89261.0,89260.0,0.00215978]
[1765123831514,0.78593544,89261.0,89260.0,0.00215978]
[1765123831714,0.40041245,89261.0,89260.0,0.00215978]
[1765123831939,0.40779887,89261.0,89260.0,0.00215978]
[1765123832146,0.41822814,89261.0,89260.0,0.00215978]
[1765123832349,0.40779887,89261.0,89260.0,0.00215978]
[1765123832564,0.51750393,89261.0,89260.0,0.00215978]
[1765123832963,0.58002692,89261.0,89260.0,0.00215978]
[1765123833172,0.91345408,89261.0,89260.0,0.00215978]
[1765123834216,2.91345408,89261.0,89260.0,0.00215978]
[1765123834426,2.09669508,89261.0,89260.0,0.00215978]
[1765123834922,1.91223508,89261.0,89260.0,0.00215978]
[1765123835580,1.89439508,89261.0,89260.0,0.00215978]
[1765123835884,1.16645008,89261.0,89260.0,0.00215978]
[1765123836570,1.14861008,89261.0,89260.0,0.00215978]
[1765123836747,1.16645008,89261.0,89260.0,0.00215978]
[1765123837942,1.03890502,89261.0,89260.0,0.00215978]
[1765123838218,1.05674502,89261.0,89260.0,0.00215978]
[1765123838456,0.78590902,89261.0,89260.0,0.00215978]
[1765123838666,0.93344686,89261.0,89260.0,0.00215978]
[1765123838922,0.79332186,89261.0,89260.0,0.00215978]
[1765123839344,0.92230586,89261.0,89260.0,0.00215978]
[1765123839515,1.03201092,89261.0,89260.0,0.00215978]
[1765123839938,1.04243267,89261.0,89260.0,0.00215978]
[1765123840181,1.03201092,89261.0,89260.0,0.00215978]
[1765123840385,1.04243301,89261.0,89260.0,0.00215978]
[1765123840784,0.91344901,89261.0,89260.0,0.00215978]
[1765123840993,1.04579301,89261.0,89260.0,0.00215978]
[1765123843189,0.92487495,89261.0,89260.0,0.00215978]
[1765123843395,0.92487495,89261.0,89260.0,0.50255359]
[1765123843396,0.91445286,89261.0,89260.0,0.50255359]
[1765123843811,0.89463586,89261.0,89260.0,0.50255359]
[1765123844128,0.90506039,89261.0,89260.0,0.50255359]
[1765123845008,0.80374639,89261.0,89260.0,0.50255359]
[1765123845594,1.09773941,89261.0,89260.0,0.50255359]
[1765123845819,1.11994339,89261.0,89260.0,0.50255359]
[1765123849056,1.10210339,89261.0,89260.0,0.50255359]
[1765123849231,1.11994339,89261.0,89260.0,0.50255359]
[1765123851018,0.95427239,89261.0,89260.0,0.50255359]
[1765123851233,0.90573239,89261.0,89260.0,0.50255359]
[1765123851372,0.92357239,89261.0,89260.0,0.50255359]
[1765123852644,0.23448655,89261.0,89260.0,0.50255359]
[1765123852820,0.25232655,89261.0,89260.0,0.50255359]
[1765123853117,0.01042453,89261.0,89260.0,0.64252359]
[1765123853272,0.01784,89261.0,89260.0,0.55948359]
[1765123853693,0.01784,89261.0,89260.0,0.50255359]
[1765123854036,0.19230482,89261.0,89260.0,0.50255359]
[1765123854208,0.10442482,89261.0,89260.0,0.50255359]
[1765123854411,0.10542482,89261.0,89260.0,0.50255359]
[1765123854822,0.10642482,89261.0,89260.0,0.50255359]
[1765123855019,0.10442482,89261.0,89260.0,0.50355359]
[1765123855243,0.05053482,89261.0,89260.0,0.50355359]
[1765123855449,0.05053482,89261.0,89260.0,0.50655359]
[1765123855771,0.03269482,89261.0,89260.0,0.50655359]
[1765123855938,0.01784,89261.0,89260.0,0.50655359]
[1765123856120,0.01120259,89265.0,89260.0,0.64645359]
[1765123856326,0.22403778,89271.0,89265.0,0.01120259]
[1765123856527,0.01048421,89270.0,89268.0,0.0549]
[1765123856728,0.22403076,89274.0,89267.0,0.2352484]
[1765123856932,0.01120134,89275.0,89260.0,0.51499703]
[1765123856933,0.01120285,89263.0,89260.0,0.51499703]
[1765123857160,0.23526196,89263.0,89260.0,0.50079381]
[1765123857360,0.23526196,89263.0,89260.0,0.50179381]
[1765123857627,0.01120285,89263.0,89260.0,0.50179381]
[1765123857827,0.23526105,89263.0,89260.0,0.50079381]
[1765123858035,0.01120285,89263.0,89260.0,0.50079381]
[1765123858173,0.01120285,89263.0,89260.0,0.51499703]
[1765123858382,0.01120285,89263.0,89260.0,0.51299703]
[1765123858585,0.2352482,89268.0,89262.0,0.0549]
[1765123858793,0.01120222,89268.0,89267.0,0.0549]
[1765123859348,0.01883999,89270.0,89260.0,0.51399703]
[1765123859545,0.01883999,89270.0,89260.0,0.7380607]
[1765123859774,0.22404194,89269.0,89260.0,0.7380607]
[1765123859994,0.01120272,89264.0,89261.0,0.0112031]
[1765123860205,0.01120272,89264.0,89260.0,0.51299703]
[1765123860375,0.01120272,89264.0,89263.0,0.0549]
[1765123860790,0.23524992,89267.0,89263.0,0.0549]
[1765123860791,0.01120234,89267.0,89263.0,0.06610285]
[1765123860964,0.01120247,89266.0,89264.0,0.0549]
[1765123861355,0.01120247,89266.0,89264.0,0.054791]
[1765123861634,0.22405198,89265.0,89264.0,0.05642935]
[1765123863287,0.22405198,89265.0,89264.0,0.00163835]
[1765123863892,0.24925596,89265.0,89264.0,0.00163835]
[1765123864091,0.22705198,89265.0,89264.0,0.00163835]
[1765123865123,0.003,89265.0,89264.0,0.14153835]
[1765123865879,0.003,89265.0,89264.0,0.36559284]
[1765123866245,0.003,89265.0,89264.0,0.14153835]
[1765123866453,0.23524962,89267.0,89264.0,0.14253835]
[1765123866651,0.23524962,89267.0,89266.0,0.0549]
[1765123866871,0.23524962,89267.0,89266.0,0.00157763]
[1765123867073,0.3470536,89267.0,89266.0,0.00157763]
[1765123867296,0.32484962,89267.0,89266.0,0.00157763]
[1765123867719,0.27060962,89267.0,89266.0,0.00157763]
[1765123867918,0.25508962,89267.0,89266.0,0.00157763]
[1765123868229,0.002,89267.0,89266.0,0.14147763]
[1765123870152,0.002,89267.0,89266.0,0.3655271]
[1765123871936,0.002,89267.0,89266.0,0.6885271]
[1765123872842,0.00099999,89280.0,89266.0,0.6885271]
[1765123872843,0.00099999,89280.0,89279.0,0.22401684]
[1765123873044,0.22398039,89294.0,89288.0,0.22399426]
[1765123873045,0.01784,89290.0,89288.0,0.22399426]
[1765123873186,0.01784,89290.0,89287.0,0.01119983]
[1765123873389,0.22398693,89291.0,89289.0,0.05676]
[1765123873590,0.0111987,89296.0,89293.0,0.09495]
[1765123873806,0.0111987,89296.0,89293.0,0.03819]
[1765123874006,0.01784,89298.0,89295.0,0.05676]
[1765123874209,0.01784,89298.0,89297.0,0.05676]
[1765123874409,0.0111982,89300.0,89297.0,0.14188]
[1765123874607,0.01784,89309.0,89297.0,0.14188]
[1765123874608,0.01119733,89307.0,89302.0,0.01119795]
[1765123874858,0.01119745,89306.0,89300.0,0.05676]
[1765123875000,0.04243,89315.0,89300.0,0.08512]
[1765123875202,0.01119682,89311.0,89306.0,0.01119745]
[1765123875607,0.01784,89312.0,89310.0,0.09495]
[1765123875949,0.01784,89312.0,89311.0,0.05676]
[1765123876162,0.23512909,89313.0,89311.0,0.05676]
[1765123876356,0.01119632,89315.0,89312.0,0.1530767]
[1765123876508,0.22392905,89314.0,89313.0,0.05676]
[1765123876910,0.0111977,89304.0,89303.0,0.03819]
[1765123877344,0.0111977,89304.0,89303.0,0.09495]
[1765123878183,0.01119758,89305.0,89303.0,0.18007]
[1765123878422,0.01119733,89307.0,89304.0,0.05676]
[1765123878601,0.01119745,89306.0,89303.0,0.12331]
[1765123878914,0.22395162,89305.0,89303.0,0.03819]
[1765123879299,0.22395162,89305.0,89304.0,0.00042457]
[1765123879825,0.36263449,89305.0,89304.0,0.00042457]
[1765123880177,0.38783847,89305.0,89304.0,0.00042457]
[1765123880513,0.27941449,89305.0,89304.0,0.00042457]
[1765123880805,0.30461847,89305.0,89304.0,0.00042457]
[1765123881346,0.30461847,89305.0,89304.0,0.00142457]
[1765123882226,0.30461847,89305.0,89304.0,0.00242457]
[1765123883401,0.36563449,89305.0,89304.0,0.00242457]
[1765123883861,0.42335746,89305.0,89304.0,0.00242457]
[1765123884197,0.38783847,89305.0,89304.0,0.00242457]
[1765123884739,0.45036146,89305.0,89304.0,0.00242457]
[1765123884946,0.77336146,89305.0,89304.0,0.00242457]
[1765123885145,0.7838018,89305.0,89304.0,0.00242457]
[1765123885574,0.7808018,89305.0,89304.0,0.00042457]
[1765123885751,0.88445731,89305.0,89304.0,0.00042457]
[1765123885962,0.89045731,89305.0,89304.0,0.00042457]
[1765123886161,0.99711431,89305.0,89304.0,0.00042457]
[1765123886774,0.8954588,89305.0,89304.0,0.00042457]
[1765123887100,0.8066418,89305.0,89304.0,0.00042457]
[1765123887836,0.7868018,89305.0,89304.0,0.00042457]
[1765123888072,0.8046418,89305.0,89304.0,0.00042457]
[1765123888237,0.8056418,89305.0,89304.0,0.00042457]
[1765123888653,0.83648298,89305.0,89304.0,0.00042457]
[1765123888947,1.34344298,89305.0,89304.0,0.00042457]
[1765123889146,1.34744298,89305.0,89304.0,0.00042457]
[1765123890165,1.32960298,89305.0,89304.0,0.00042457]
[1765123890377,1.33161298,89305.0,89304.0,0.00042457]
[1765123891984,1.33161298,89305.0,89304.0,4.57e-06]
[1765123892221,1.33161298,89305.0,89295.0,0.00039381]
[1765123892222,1.79097616,89296.0,89295.0,0.00039381]
[1765123892469,1.88317154,89296.0,89295.0,0.00039381]
[1765123892670,1.96639154,89296.0,89295.0,0.00039381]
[1765123893693,1.96739154,89296.0,89295.0,0.00139381]
[1765123894116,1.86626354,89296.0,89295.0,0.00139381]
[1765123894691,1.86626354,89296.0,89295.0,0.00039381]
[1765123895080,1.86726354,89296.0,89295.0,0.00039381]
[1765123895409,1.86626354,89296.0,89295.0,0.00039381]
[1765123895613,1.87126354,89296.0,89295.0,0.00039381]
[1765123897881,1.87126354,89296.0,89295.0,0.00066679]
[1765123898495,0.22406069,89262.0,89260.0,0.5004]
[1765123898840,0.22406069,89262.0,89260.0,0.50079167]
[1765123899818,0.22806069,89262.0,89260.0,0.50079167]
[1765123900184,0.22806069,89262.0,89260.0,0.50279167]
[1765123900586,0.15927398,89261.0,89260.0,0.50079167]
[1765123901818,0.16127398,89261.0,89260.0,0.50079167]
[1765123902155,0.13907,89261.0,89260.0,0.50079167]
[1765123902300,0.16127398,89261.0,89260.0,0.50079167]
[1765123902499,0.16227398,89261.0,89260.0,0.50079167]
[1765123904306,0.16227398,89261.0,89260.0,0.50185374]
[1765123905105,0.07905398,89261.0,89260.0,0.50185374]
[1765123905357,0.02520398,89261.0,89260.0,0.50185374]
[1765123905721,0.15773398,89261.0,89260.0,0.50185374]
[1765123906126,0.15934685,89261.0,89260.0,0.50185374]
[1765123906334,0.54486984,89261.0,89260.0,0.50185374]
[1765123906513,1.04858884,89261.0,89260.0,0.50185374]
[1765123906711,1.05903638,89261.0,89260.0,0.50185374]
[1765123907111,1.05803638,89261.0,89260.0,0.50185374]
[1765123907866,1.05603638,89261.0,89260.0,0.50185374]
[1765123908208,1.16574144,89261.0,89260.0,0.50185374]
[1765123908412,1.16574144,89261.0,89260.0,0.50385374]
[1765123908543,0.8416859,89261.0,89260.0,0.50385374]
[1765123909911,0.54186984,89261.0,89260.0,0.50385374]
[1765123910138,0.55970984,89261.0,89260.0,0.50385374]
[1765123910838,0.70185984,89261.0,89260.0,0.50385374]
[1765123912550,0.71230759,89261.0,89260.0,0.50385374]
[1765123914481,0.69446759,89261.0,89260.0,0.50385374]
[1765123914626,0.71230759,89261.0,89260.0,0.50385374]
[1765123915443,0.6319446,89261.0,89260.0,0.50385374]
[1765123915664,0.6497846,89261.0,89260.0,0.50385374]
[1765123918293,0.6319446,89261.0,89260.0,0.50385374]
[1765123918511,0.6497846,89261.0,89260.0,0.50385374]
[1765123921138,0.71230759,89261.0,89260.0,0.50385374]
[1765123921336,0.82201265,89261.0,89260.0,0.50385374]
[1765123922510,0.82401265,89261.0,89260.0,0.50385374]
[1765123922710,0.82401265,89261.0,89260.0,0.50377674]
[1765123922866,0.71430759,89261.0,89260.0,0.50177674]
[1765123923055,0.71730759,89261.0,89260.0,0.50177674]
[1765123923254,0.74745413,89261.0,89260.0,0.50177674]
[1765123925185,0.6547846,89261.0,89260.0,0.50177674]
[1765123925595,0.53636062,89261.0,89260.0,0.50177674]
[1765123925807,0.30239062,89261.0,89260.0,0.50177674]
[1765123926015,0.27492362,89261.0,89260.0,0.50177674]
[1765123926235,0.01044775,89261.0,89260.0,0.50177674]
[1765123926376,0.03128775,89261.0,89260.0,0.50177674]
[1765123926973,0.02084,89261.0,89260.0,0.50177674]
[1765123927184,0.01984,89261.0,89260.0,0.50177674]
[1765123927424,0.06964,89261.0,89260.0,0.50177674]
[1765123927781,0.06764,89261.0,89260.0,0.50177674]
[1765123928300,0.06764,89261.0,89260.0,0.50277674]
[1765123928467,0.14318,89261.0,89260.0,0.50777674]
[1765123928675,0.14318,89261.0,89260.0,0.50177674]
[1765123928902,0.16538398,89261.0,89260.0,0.50177674]
[1765123929082,0.18367791,89261.0,89260.0,0.50977674]
[1765123929267,0.18367989,89261.0,89260.0,0.50977674]
[1765123929728,0.18367989,89261.0,89260.0,0.50877674]
[1765123929922,0.18267989,89261.0,89260.0,0.50177674]
[1765123930130,0.07445606,89261.0,89260.0,0.50177674]
[1765123930277,0.07445606,89261.0,89260.0,0.50577674]
[1765123930278,0.02832186,89261.0,89260.0,0.50577674]
[1765123930687,0.01784,89261.0,89260.0,0.50577674]
[1765123931113,0.01784,89261.0,89260.0,0.50677674]
[1765123931522,0.01784,89261.0,89260.0,0.51697996]
[1765123931739,0.01784,89261.0,89260.0,0.50577674]
[1765123931936,0.01784,89261.0,89260.0,0.50277674]
[1765123932155,0.04243,89264.0,89261.0,0.23526473]
[1765123932358,0.01120259,89265.0,89262.0,0.01120297]
[1765123932508,0.01784,89264.0,89263.0,0.22502801]
[1765123932711,0.01784,89264.0,89263.0,0.00097101]
[1765123933484,0.24573662,89266.0,89263.0,0.00097101]
[1765123933638,0.23525721,89264.0,89260.0,0.50071467]
[1765123933842,0.23525721,89264.0,89263.0,0.005]
[1765123934010,0.01120272,89264.0,89263.0,0.005]
[1765123934206,0.32400721,89264.0,89263.0,0.00597101]
[1765123934467,0.4154187,89264.0,89263.0,0.00597101]
[1765123934769,0.4154187,89264.0,89263.0,0.00517101]
[1765123935351,0.41703142,89264.0,89263.0,0.00517101]
[1765123935531,0.4392354,89264.0,89263.0,0.00517101]
[1765123935750,0.4392354,89264.0,89263.0,0.00617101]
[1765123936376,0.4392354,89264.0,89263.0,0.00517101]
[1765123937745,0.28569855,89264.0,89263.0,0.00517101]
[1765123938273,0.29205721,89264.0,89263.0,0.00517101]
[1765123938606,0.29205721,89264.0,89263.0,0.00617101]
[1765123939220,0.44659406,89264.0,89263.0,0.00617101]
[1765123939434,0.4570751,89264.0,89263.0,0.00617101]
[1765123940290,0.35232825,89264.0,89263.0,0.00617101]
[1765123940642,0.43325825,89264.0,89263.0,0.00617101]
[1765123940990,0.43325825,89264.0,89263.0,0.00517101]
[1765123941122,0.35332825,89264.0,89263.0,0.00097101]
[1765123941324,0.34284721,89264.0,89263.0,0.00097101]
[1765123941654,0.27421721,89264.0,89263.0,0.00297101]
[1765123941857,0.29205721,89264.0,89263.0,0.00097101]
[1765123942072,0.25309721,89264.0,89263.0,0.00097101]
[1765123942232,0.25309721,89264.0,89263.0,0.00597101]
[1765123942439,0.23525721,89264.0,89263.0,0.00697101]
[1765123942644,0.01784,89265.0,89263.0,0.06751386]
[1765123942839,0.01784,89268.0,89267.0,0.01120234]
[1765123943068,0.01784,89268.0,89267.0,0.09119234]
[1765123943274,0.01784,89268.0,89267.0,0.17090234]
[1765123944027,0.22401533,89280.0,89274.0,0.01120146]
[1765123944145,0.22401533,89280.0,89275.0,0.01120134]
[1765123944146,0.02904096,89278.0,89275.0,0.01120134]
[1765123944349,0.01784,89278.0,89275.0,0.23522785]
[1765123944550,0.01120071,89280.0,89277.0,0.04934]
[1765123944767,0.01784,89279.0,89277.0,0.06054109]
[1765123945198,0.01119933,89291.0,89285.0,0.01120008]
[1765123945395,0.22397844,89295.0,89290.0,0.07746]
[1765123945396,0.23518294,89293.0,89290.0,0.07746]
[1765123945750,0.23518294,89293.0,89292.0,0.04934]
[1765123945936,0.22397927,89294.0,89292.0,0.04934]
[1765123946139,0.01119883,89295.0,89292.0,0.04934]
[1765123946301,0.01119883,89295.0,89294.0,0.04934]
[1765123946511,0.01119883,89295.0,89290.0,0.03931946]
[1765123946512,0.01119908,89293.0,89290.0,0.03931946]
[1765123947305,0.2239612,89302.0,89290.0,0.03931946]
[1765123947306,0.01119808,89301.0,89294.0,0.01119896]
[1765123947505,0.01119858,89297.0,89294.0,0.01119896]
[1765123947904,0.01119858,89297.0,89296.0,0.04934]
[1765123948366,0.0111987,89296.0,89291.0,0.01119933]
[1765123948540,0.0111987,89296.0,89292.0,0.01119921]
[1765123948859,0.0290382,89300.0,89296.0,0.0111987]
[1765123949020,0.22395116,89306.0,89300.0,0.0111982]
[1765123949224,0.01784,89305.0,89300.0,0.0605382]
[1765123949428,0.01119783,89303.0,89300.0,0.04934]
[1765123950208,0.01119845,89298.0,89293.0,0.01119908]
[1765123950413,0.00099999,89300.0,89296.0,0.0111987]
[1765123950614,0.23515709,89302.0,89299.0,0.04934]